bitfinex/quotes_ETHUSD_20250115
["timestamp","ask_amount","ask_price","bid_price","bid_amount"]
[1736938905435,1.6032833,3210.5,3210.4,0.14554798]
[1736938909942,4.6032833,3210.5,3210.4,0.14554798]
[1736938912339,9.9232833,3210.5,3210.4,0.14554798]
[1736938912556,9.89205421,3210.5,3210.4,0.14554798]
[1736938912759,11.17620864,3210.5,3210.4,0.14554798]
[1736938928165,11.17620864,3210.5,3209.2,0.174]
[1736938928457,0.55,3209.2,3208.9,0.174]
[1736938928963,0.79625421,3209.0,3208.9,0.174]
[1736938930434,0.24625421,3209.0,3208.9,0.174]
[1736938930827,0.24625421,3209.3,3208.9,0.174]
[1736938931028,0.24625421,3209.0,3208.9,0.174]
[1736938931330,0.55,3209.2,3208.9,0.174]
[1736938931529,0.24625421,3209.0,3208.9,0.174]
[1736938931929,0.24625421,3209.2,3208.9,0.174]
[1736938939970,0.24625421,3209.2,3209.1,0.60893583]
[1736938941149,0.24625421,3209.9,3209.1,0.64009495]
[1736938941551,0.24625421,3209.6,3209.1,0.64009495]
[1736938941967,0.24625421,3209.6,3209.1,0.60893583]
[1736938943756,0.24625421,3209.6,3209.2,0.03115621]
[1736938943965,0.24625421,3209.8,3209.2,0.03115621]
[1736938944173,0.55,3209.8,3209.2,0.03115621]
[1736938944678,0.24625421,3210.2,3209.2,0.03115621]
[1736938944879,0.24625421,3210.0,3209.1,3.55842591]
[1736938945109,0.24625421,3209.8,3209.0,0.03115257]
[1736938945285,0.24625421,3209.4,3209.1,0.174]
[1736938945583,0.24625421,3209.4,3209.0,3.26007115]
[1736938945584,0.24625421,3209.2,3209.0,3.26007115]
[1736938945782,0.79625421,3209.2,3209.1,0.174]
[1736938945961,0.79250515,3209.2,3209.1,0.174]
[1736938947148,0.24250515,3209.2,3209.1,0.174]
[1736938948077,0.55,3209.5,3209.1,0.174]
[1736938948078,0.24250515,3209.4,3209.1,0.174]
[1736938948991,0.24250515,3209.7,3209.1,0.174]
[1736938950059,0.24250515,3209.4,3209.1,0.174]
[1736938950789,0.24250515,3209.4,3208.8,3.26007115]
[1736938951003,0.24250515,3209.4,3208.9,0.20515922]
[1736938951160,0.24250515,3209.6,3208.9,0.20515922]
[1736938951556,0.24250515,3209.6,3208.9,0.174]
[1736938952295,0.24250515,3209.6,3209.0,0.174]
[1736938952683,0.24250515,3209.3,3209.0,0.174]
[1736938956197,0.24250515,3209.3,3208.6,0.61549024]
[1736938956393,0.24250515,3209.3,3208.7,0.174]
[1736938957263,0.24250515,3209.3,3208.7,0.20515967]
[1736938957693,0.24250515,3209.3,3208.7,0.03115967]
[1736938957901,0.24250515,3209.3,3208.8,0.174]
[1736938958076,0.24250515,3209.3,3208.9,0.03115965]
[1736938958271,0.24250515,3209.3,3208.8,3.43407115]
[1736938958478,0.24250515,3209.3,3208.8,3.4652308]
[1736938959109,0.24250515,3209.3,3208.8,3.43407115]
[1736938960004,0.24250515,3209.3,3208.9,3.26007115]
[1736938960160,0.24250515,3209.3,3208.8,0.174]
[1736938962290,0.24250515,3209.1,3208.8,0.174]
[1736938962516,0.24250515,3209.1,3208.9,0.174]
[1736938964818,0.24250515,3209.3,3208.9,0.174]
[1736938965019,0.24250515,3209.3,3209.0,0.03115922]
[1736938965320,0.24250515,3209.3,3208.9,0.174]
[1736938966216,0.24250515,3209.3,3209.0,0.174]
[1736938970132,0.24250515,3209.1,3209.0,0.174]
[1736938970423,0.24250515,3209.1,3208.7,3.26007115]
[1736938970575,0.24250515,3209.1,3209.0,0.174]
[1736938978312,1.05650515,3209.1,3209.0,0.174]
[1736938979594,1.60650515,3209.1,3209.0,0.174]
[1736938979916,0.79250515,3209.1,3209.0,0.174]
[1736938980614,0.24250515,3208.9,3208.6,3.26007115]
[1736938980779,0.24250515,3208.9,3208.7,0.174]
[1736938982083,0.24250515,3208.9,3208.5,3.86962242]
[1736938982395,0.24250515,3208.9,3208.6,0.174]
[1736938983516,0.24250515,3208.9,3208.7,0.174]
[1736938983717,0.24250515,3208.6,3208.5,0.60955127]
[1736938983915,0.24250515,3208.6,3208.5,0.78355127]
[1736938984123,0.8308,3208.8,3208.5,0.78355127]
[1736938984331,0.24250515,3208.6,3208.5,0.78355127]
[1736938985329,0.24250515,3209.0,3208.5,0.78355127]
[1736938985510,0.24250515,3209.0,3208.6,0.03116211]
[1736938985901,0.24250515,3209.0,3208.8,3.26007115]
[1736938986096,3.0,3209.7,3208.8,3.26007115]
[1736938986097,0.24250515,3209.4,3208.9,0.03116176]
[1736938986718,0.24250515,3209.2,3209.0,3.26007115]
[1736938986932,0.24250515,3209.4,3209.0,3.26007115]
[1736938987101,0.24250515,3209.2,3208.9,3.29123291]
[1736938987429,0.55,3209.5,3208.9,3.29123291]
[1736938987430,0.24250515,3209.4,3208.9,3.29123291]
[1736938987632,0.55,3209.5,3208.9,3.29123291]
[1736938987633,0.24250515,3209.2,3208.9,3.29123291]
[1736938987797,0.24250515,3209.2,3209.0,3.26007115]
[1736938987997,0.24250515,3209.2,3209.0,3.88332696]
[1736938988719,0.24250515,3209.2,3209.0,0.62325581]
[1736938989121,0.24250515,3209.2,3208.9,3.26007115]
[1736938990627,0.24250515,3209.4,3208.9,3.26007115]
[1736938990823,0.24250515,3209.4,3209.0,0.03115946]
[1736938991011,0.24250515,3209.4,3209.1,3.26007115]
[1736938992522,0.24250515,3209.4,3209.2,3.26007115]
[1736938993335,0.24250515,3209.4,3209.1,4.66037041]
[1736938995225,0.24250515,3209.4,3209.2,0.174]
[1736938995624,0.24250515,3209.4,3209.2,3.43407115]
[1736938996352,0.24250515,3209.4,3209.2,0.174]
[1736938999646,0.24250515,3209.4,3209.1,0.174]
[1736939001956,0.24250515,3209.4,3209.1,1.57429926]
[1736939002149,0.24250515,3209.4,3209.1,4.83437041]
[1736939002350,0.24250515,3209.4,3209.1,3.43407115]
[1736939003052,0.24250515,3209.4,3209.2,0.03115826]
[1736939003561,0.24250515,3209.4,3209.2,3.29122941]
[1736939004019,0.24250515,3209.4,3209.2,3.26007115]
[1736939004836,0.7521,3209.3,3209.1,0.174]
[1736939006494,0.24250515,3209.4,3209.1,0.174]
[1736939009180,0.24250515,3209.4,3209.2,0.03115829]
[1736939009547,0.24250515,3209.4,3209.1,3.43407115]
[1736939010250,0.99460515,3209.6,3209.2,0.03115664]
[1736939012182,0.99460515,3209.6,3209.1,3.46522718]
[1736939015969,0.24250515,3209.8,3209.1,3.46522718]
[1736939016245,0.24250515,3210.0,3209.1,3.46522718]
[1736939016682,0.24250515,3210.0,3209.3,3.26007115]
[1736939016884,0.24250515,3210.2,3209.4,0.03115196]
[1736939017591,0.7581,3210.3,3209.4,0.03115196]
[1736939017974,1.00060515,3210.3,3209.4,0.03115196]
[1736939018573,1.00060515,3210.3,3209.3,2.98982379]
[1736939018782,1.00060515,3210.3,3209.3,2.95867436]
[1736939019182,1.00060515,3210.3,3209.8,0.6250312]
[1736939024104,1.00060515,3210.3,3209.3,2.95867436]
[1736939024265,0.24250515,3210.1,3209.3,2.95867436]
[1736939024467,0.24250515,3210.1,3209.6,0.62013423]
[1736939024784,0.24250515,3209.8,3209.1,3.0]
[1736939024986,0.24250515,3209.8,3209.7,0.174]
[1736939025366,0.24250515,3209.8,3209.1,3.0]
[1736939025562,0.24250515,3209.8,3209.2,0.174]
[1736939026084,0.7581,3209.9,3209.4,0.61932294]
[1736939026085,0.24250515,3209.6,3209.4,0.61932294]
[1736939026284,0.24250515,3209.4,3208.4,0.1285345]
[1736939026484,0.24250515,3209.4,3208.5,2.95867436]
[1736939026690,0.24250515,3209.4,3208.5,3.13267436]
[1736939027299,0.24250515,3209.4,3208.6,0.03115837]
[1736939027499,0.24250515,3209.4,3209.0,1.40035345]
[1736939027733,0.24250515,3209.4,3209.0,2.02217266]
[1736939029490,0.24250515,3209.4,3209.0,0.62181921]
[1736939029892,0.7581,3209.5,3209.1,0.03115836]
[1736939030076,0.24250515,3210.1,3209.3,2.95820886]
[1736939030409,0.24250515,3210.1,3209.4,0.174]
[1736939030771,0.24250515,3210.1,3209.5,0.03115062]
[1736939033131,0.24250515,3210.3,3209.5,0.03115062]
[1736939033995,0.24250515,3210.4,3209.6,2.95820886]
[1736939034318,0.24250515,3210.4,3209.6,2.98935598]
[1736939035804,0.24250515,3210.4,3210.0,0.6173533]
[1736939035982,0.24250515,3210.4,3210.0,0.64850058]
[1736939036182,0.24250515,3210.4,3210.0,0.6173533]
[1736939036384,0.24250515,3210.6,3210.0,0.6173533]
[1736939036881,0.7992,3210.8,3210.0,0.6173533]
[1736939036882,0.24250515,3210.4,3210.0,0.6173533]
[1736939038184,0.24250515,3210.4,3210.0,0.64850022]
[1736939038588,0.24250515,3210.4,3209.9,2.95820886]
[1736939040002,0.24250515,3210.4,3209.9,0.63583489]
[1736939042230,0.24250515,3210.4,3210.0,0.03114698]
[1736939043289,0.24250515,3210.4,3209.9,0.63583489]
[1736939043832,0.24250515,3210.4,3210.0,0.174]
[1736939044620,0.24250515,3210.1,3209.5,5.38]
[1736939044825,0.24250515,3209.7,3209.6,0.174]
[1736939045493,0.24250515,3209.7,3209.5,5.38]
[1736939045722,0.24250515,3209.7,3209.6,0.174]
[1736939045888,0.27373424,3209.7,3209.5,0.174]
[1736939046220,0.27373424,3209.7,3209.4,0.174]
[1736939046588,0.24250515,3209.5,3208.3,2.95820886]
[1736939046787,0.24250515,3209.0,3208.7,0.63334747]
[1736939047218,0.24250515,3209.0,3208.8,0.174]
[1736939048190,0.24250515,3209.0,3208.9,0.174]
[1736939053046,0.24250515,3209.1,3208.9,0.174]
[1736939053340,0.24250515,3209.1,3209.0,0.174]
[1736939056246,0.24250515,3208.9,3208.7,0.63334747]
[1736939056441,0.24250515,3208.9,3208.8,0.174]
[1736939056749,0.03122909,3209.3,3208.8,0.174]
[1736939056750,0.24250515,3209.0,3208.8,0.174]
[1736939057955,0.24250515,3208.8,3208.7,0.63334747]
[1736939058244,0.24250515,3208.8,3208.7,0.80734747]
[1736939058840,0.24250515,3208.8,3208.7,0.63334747]
[1736939059265,0.24250515,3208.8,3208.7,0.80734747]
[1736939060107,0.24250515,3208.8,3208.7,0.63334747]
[1736939060373,0.24250515,3208.8,3208.7,0.80734747]
[1736939062608,0.24250515,3208.8,3208.7,0.174]
[1736939064945,0.24250515,3208.8,3208.6,0.174]
[1736939065721,0.27373424,3208.8,3208.6,0.174]
[1736939068725,0.8042,3208.7,3208.6,0.174]
[1736939068926,0.8042,3208.7,3208.5,0.174]
[1736939069826,0.8042,3208.7,3208.4,0.1285345]
[1736939070026,0.8042,3208.7,3208.5,0.174]
[1736939070222,0.8042,3208.7,3208.1,0.44526578]
[1736939070473,0.8042,3208.7,3208.5,0.174]
[1736939073472,0.24250515,3208.6,3208.5,0.174]
[1736939074579,0.27373424,3208.6,3208.5,0.174]
[1736939075120,0.24250515,3208.6,3208.5,0.174]
[1736939084890,0.24250515,3208.4,3208.3,1.40116161]
[1736939085090,0.24250515,3208.4,3208.3,1.57516161]
[1736939087525,0.24250515,3208.4,3208.3,0.174]
[1736939089204,0.2387534,3208.4,3208.1,1.40116161]
[1736939089405,0.2387534,3208.4,3208.2,0.174]
[1736939090804,0.2387534,3208.5,3208.2,0.174]
[1736939091794,0.2387534,3208.3,3208.2,3.43924894]
[1736939092333,0.2387534,3208.3,3208.2,0.174]
[1736939096337,0.2387534,3208.3,3208.0,3.90314293]
[1736939096338,0.2387534,3208.1,3208.0,3.90314293]
[1736939096552,0.2387534,3208.1,3208.0,4.07714293]
[1736939096754,0.2387534,3208.1,3208.0,0.81189399]
[1736939097056,0.2387534,3208.1,3208.0,2.2130556]
[1736939098138,0.2387534,3208.1,3208.0,2.0390556]
[1736939098342,0.2387534,3208.1,3208.0,0.81189399]
[1736939099769,0.2387534,3208.1,3208.0,2.2130556]
[1736939099936,0.2387534,3208.1,3208.0,5.47830454]
[1736939100769,0.2387534,3208.3,3208.0,5.47830454]
[1736939100951,0.2387534,3208.5,3208.2,1.40116161]
[1736939101135,0.2387534,3208.6,3208.4,1.40116161]
[1736939101323,0.2387534,3208.8,3208.5,0.03116637]
[1736939101521,0.2387534,3208.8,3208.6,1.40116161]
[1736939102281,0.2387534,3208.8,3208.6,4.66641055]
[1736939102993,0.2387534,3209.0,3208.6,4.6975731]
[1736939103137,0.2387534,3209.3,3209.0,1.40116161]
[1736939103472,1.0209534,3209.3,3209.1,0.174]
[1736939104358,0.2387534,3209.3,3209.1,0.174]
[1736939105622,0.2387534,3209.3,3209.1,0.20515713]
[1736939106064,0.2387534,3209.6,3209.1,0.20515713]
[1736939106267,0.2387534,3209.4,3209.1,0.20515713]
[1736939106467,0.2387534,3209.6,3209.1,0.20515713]
[1736939106637,0.2387534,3209.6,3209.3,3.26524894]
[1736939106831,0.2387534,3209.6,3209.4,0.03115461]
[1736939107236,0.2387534,3209.8,3209.4,0.03115461]
[1736939107965,0.2387534,3209.8,3209.4,0.03115209]
[1736939108255,0.2387534,3209.8,3209.3,3.26524894]
[1736939108827,0.2387534,3209.8,3209.1,6.39795286]
[1736939109968,0.2387534,3209.8,3209.2,3.26524894]
[1736939110163,0.2387534,3209.3,3209.2,3.26524894]
[1736939110501,0.2387534,3209.3,3209.2,3.43924894]
[1736939110827,0.2387534,3209.3,3209.2,0.20515645]
[1736939111225,0.2387534,3209.3,3209.2,0.174]
[1736939111463,0.2387534,3209.5,3209.2,0.20515631]
[1736939111962,0.2387534,3209.7,3209.2,0.03115631]
[1736939112125,0.2387534,3209.7,3209.3,0.174]
[1736939112976,0.2387534,3209.5,3209.3,0.174]
[1736939113136,0.2387534,3209.7,3209.3,0.174]
[1736939113343,0.2387534,3209.5,3209.3,0.20515406]
[1736939113542,0.2387534,3209.9,3209.4,0.03115418]
[1736939113760,0.2387534,3209.7,3209.4,0.03115418]
[1736939114067,0.2387534,3209.7,3209.3,0.174]
[1736939117246,0.2387534,3209.7,3209.1,3.57814476]
[1736939117474,0.2387534,3209.7,3209.2,0.174]
[1736939118080,0.2387534,3209.7,3209.1,3.57814476]
[1736939118081,0.2387534,3209.5,3209.3,0.174]
[1736939118681,0.2387534,3209.7,3209.3,0.174]
[1736939118886,0.2387534,3209.7,3209.4,2.9898581]
[1736939119183,0.2387534,3209.7,3209.4,2.95870392]
[1736939119884,0.2387534,3209.7,3209.4,2.98985631]
[1736939120247,0.2387534,3209.7,3209.4,2.95870392]
[1736939120449,0.2387534,3209.7,3209.3,0.174]
[1736939121184,0.2387534,3209.7,3209.4,0.03115254]
[1736939122464,0.2387534,3209.7,3209.6,0.63802363]
[1736939122679,0.2387534,3209.7,3209.6,0.81202363]
[1736939124490,0.2387534,3209.9,3209.6,0.81202363]
[1736939126389,0.2387534,3209.9,3209.6,0.84317512]
[1736939126991,0.2387534,3209.9,3209.6,0.81202363]
[1736939127704,0.2387534,3209.9,3209.7,0.03115153]
[1736939128856,0.2387534,3210.1,3209.7,2.98985545]
[1736939129052,0.2387534,3210.3,3209.8,3.0]
[1736939129302,0.2387534,3210.5,3210.0,2.95870392]
[1736939129492,0.772,3210.8,3210.1,0.03114501]
[1736939129493,0.2387534,3210.7,3210.1,0.03114501]
[1736939130214,0.772,3211.1,3210.1,0.03114501]
[1736939130532,0.2387534,3210.9,3210.3,2.95870392]
[1736939130682,0.772,3211.1,3210.4,0.03114326]
[1736939130886,0.2387534,3210.9,3210.5,0.174]
[1736939131210,0.2387534,3211.1,3210.5,0.174]
[1736939131598,0.2387534,3211.1,3210.6,0.03114003]
[1736939132495,0.2387534,3211.1,3210.5,0.174]
[1736939133211,0.2387534,3211.1,3210.8,0.61476624]
[1736939133379,0.2387534,3211.1,3210.5,0.174]
[1736939135048,0.2387534,3211.1,3210.7,0.63199218]
[1736939136515,0.2387534,3211.1,3210.7,0.66313235]
[1736939137600,0.2387534,3211.1,3210.7,0.63199218]
[1736939138004,0.2387534,3211.1,3210.7,0.66313229]
[1736939138414,0.2387534,3211.1,3210.7,0.63199218]
[1736939139496,0.2387534,3211.2,3210.8,0.03114013]
[1736939140002,0.2387534,3211.2,3210.7,0.63199218]
[1736939143358,0.2387534,3211.0,3210.7,0.63199218]
[1736939143661,0.2387534,3211.0,3210.8,0.174]
[1736939144375,0.2387534,3211.0,3210.8,0.2051403]
[1736939145030,0.7639,3211.5,3210.8,0.2051403]
[1736939145031,0.2387534,3211.2,3210.8,0.2051403]
[1736939145237,0.2387534,3210.9,3210.8,0.2051403]
[1736939145436,0.2387534,3211.1,3210.8,0.2051403]
[1736939145633,0.7639,3211.5,3210.8,0.2051403]
[1736939145960,0.2387534,3211.2,3210.8,0.2051403]
[1736939147267,0.2387534,3211.2,3210.8,0.174]
[1736939148405,0.2387534,3211.2,3210.9,0.174]
[1736939148911,0.2387534,3211.2,3210.9,0.20513783]
[1736939149084,0.2387534,3211.2,3210.9,0.174]
[1736939150611,0.2387534,3211.2,3210.9,0.20513788]
[1736939151209,0.2387534,3211.2,3210.9,0.174]
[1736939151990,0.2387534,3211.2,3210.9,0.20513786]
[1736939152908,0.2387534,3211.2,3210.9,0.174]
[1736939153701,0.2387534,3211.2,3210.9,0.20513802]
[1736939153902,0.2387534,3211.2,3210.9,0.174]
[1736939154602,0.2387534,3211.2,3211.0,0.03113796]
[1736939154928,0.2387534,3211.2,3210.9,0.174]
[1736939155427,0.2387534,3211.2,3210.9,0.20513798]
[1736939156515,0.2387534,3211.4,3210.9,0.20513798]
[1736939156812,0.2387534,3211.4,3211.0,1.39872022]
[1736939157016,0.2387534,3211.4,3211.1,0.03113781]
[1736939158200,0.2387534,3211.4,3211.0,1.39872022]
[1736939158909,0.7639,3211.6,3210.9,0.174]
[1736939158910,0.2387534,3211.2,3210.9,0.174]
[1736939161944,0.2387534,3211.2,3210.9,0.20513802]
[1736939163540,0.2387534,3211.2,3210.9,0.03113802]
[1736939163731,0.2387534,3211.2,3211.0,0.174]
[1736939164746,0.2387534,3211.2,3210.9,0.03113802]
[1736939165039,0.2387534,3211.2,3211.0,0.174]
[1736939168648,0.8153,3211.1,3211.0,0.174]
[1736939177762,0.8153,3211.1,3210.9,3.26524894]
[1736939177959,0.8153,3211.1,3211.0,0.174]
[1736939180366,0.2387534,3210.9,3210.8,3.26524894]
[1736939180570,1.0540534,3210.9,3210.8,3.26524894]
[1736939180964,1.0540534,3210.9,3210.6,3.26524894]
[1736939181168,0.8153,3210.8,3210.6,3.26524894]
[1736939181375,0.8153,3210.8,3210.5,0.174]
[1736939181872,0.2387534,3210.5,3210.4,8.64524894]
[1736939182169,0.2387534,3210.5,3210.4,8.81924894]
[1736939182535,1.0540534,3210.5,3210.4,8.81924894]
[1736939182736,1.0540534,3210.5,3210.4,5.554]
[1736939183274,1.0540534,3210.5,3210.2,3.26524894]
[1736939183569,1.0540534,3210.5,3210.4,0.174]
[1736939184268,1.0540534,3210.5,3210.2,3.89710506]
[1736939184475,1.0540534,3210.5,3210.3,0.174]
[1736939185984,1.0587534,3210.2,3210.1,0.63734726]
[1736939186184,1.0587534,3210.2,3210.1,0.174]
[1736939187836,1.0587534,3210.2,3209.7,0.61272505]
[1736939188055,1.0587534,3210.2,3209.8,0.174]
[1736939188492,0.2387534,3209.8,3209.7,0.61272505]
[1736939188668,0.2387534,3209.8,3209.7,0.78672505]
[1736939190374,0.2387534,3209.8,3209.7,0.61272505]
[1736939190694,1.0587534,3209.8,3209.7,0.78672505]
[1736939191686,1.0587534,3209.8,3209.7,0.174]
[1736939192870,1.0587534,3209.8,3209.3,6.90896916]
[1736939193076,0.2387534,3209.4,3209.3,2.245]
[1736939193273,0.8163,3209.3,3209.2,3.26524894]
[1736939193595,0.2387534,3209.1,3209.0,3.26524894]
[1736939193787,1.6050534,3209.1,3209.0,3.26524894]
[1736939193999,1.90855367,3209.1,3209.0,3.26524894]
[1736939194295,1.6050534,3208.9,3208.8,0.174]
[1736939194660,1.6050534,3208.9,3208.2,1.39872022]
[1736939194865,1.6050534,3208.9,3208.5,0.174]
[1736939195060,1.6050534,3208.9,3208.2,1.39872022]
[1736939195268,1.6050534,3208.9,3208.5,0.63529506]
[1736939195963,1.6050534,3208.9,3208.5,0.80929506]
[1736939197307,0.2387534,3208.6,3208.5,0.80929506]
[1736939199991,0.2387534,3208.6,3208.5,0.63529506]
[1736939200188,1.0550534,3208.6,3208.5,0.80929506]
[1736939201771,1.0550534,3208.6,3208.5,0.63529506]
[1736939202791,1.0550534,3208.6,3208.4,0.174]
[1736939202998,0.2387534,3207.8,3207.6,2.95977647]
[1736939203181,0.2387534,3207.8,3207.7,0.81375827]
[1736939203387,0.2387534,3207.8,3207.7,0.84492886]
[1736939205229,0.2387534,3207.8,3207.7,0.81375827]
[1736939206891,0.2387534,3208.1,3207.7,0.81375827]
[1736939207126,0.2387534,3207.9,3207.7,0.81375827]
[1736939210436,0.2387534,3207.9,3207.8,0.174]
[1736939210635,0.2387534,3208.1,3207.8,0.174]
[1736939210946,0.2387534,3208.1,3207.8,0.20517129]
[1736939220256,0.7696,3208.5,3207.8,0.20517129]
[1736939220561,0.2387534,3208.3,3207.9,2.95977647]
[1736939220738,0.2387534,3208.1,3207.8,0.174]
[1736939220945,0.2387534,3208.0,3207.8,0.2051676]
[1736939221879,0.2387534,3208.3,3207.8,0.2051676]
[1736939222171,0.2387534,3208.5,3207.9,2.95977647]
[1736939223452,0.2387534,3208.5,3208.1,1.40105903]
[1736939224137,0.2387534,3208.1,3207.8,0.20516423]
[1736939224340,0.2387534,3208.1,3208.0,1.40105903]
[1736939224842,0.2387534,3208.1,3208.0,2.02031361]
[1736939225031,0.2387534,3208.1,3208.0,0.174]
[1736939225539,0.2387534,3208.1,3208.0,1.57505903]
[1736939225762,0.8011,3208.3,3208.0,1.57505903]
[1736939225932,0.2387534,3208.1,3208.0,1.57505903]
[1736939226664,0.2387534,3208.1,3208.0,0.174]
[1736939227031,1.0398534,3208.1,3208.0,0.174]
[1736939227658,0.2387534,3208.1,3208.0,0.174]
[1736939229753,0.2387534,3208.2,3208.0,1.57505903]
[1736939229955,0.2387534,3208.2,3208.1,0.03116658]
[1736939230968,0.8011,3208.6,3208.1,0.03116658]
[1736939230969,0.2387534,3208.4,3208.1,0.03116658]
[1736939231275,0.2387534,3208.2,3208.1,0.03116658]
[1736939231570,0.2387534,3208.4,3208.1,0.03116658]
[1736939231970,0.2387534,3208.2,3208.1,0.03116658]
[1736939232365,0.2387534,3208.4,3208.1,0.03116658]
[1736939232885,0.2387534,3208.2,3208.0,0.174]
[1736939233547,0.235002,3208.2,3208.0,0.174]
[1736939233748,0.235002,3208.2,3208.0,0.20516674]
[1736939233951,0.235002,3208.2,3208.0,0.174]
[1736939234346,1.036102,3208.2,3208.0,0.174]
[1736939237667,1.036102,3208.2,3207.9,3.87669727]
[1736939237864,1.036102,3208.2,3208.1,0.174]
[1736939238265,1.036102,3208.2,3208.0,3.43924894]
[1736939238457,1.036102,3208.2,3208.0,0.174]
[1736939239176,0.235002,3208.0,3207.9,3.43924894]
[1736939239340,0.235002,3208.0,3207.9,0.174]
[1736939239954,1.036102,3208.0,3207.9,0.174]
[1736939241649,0.235002,3207.7,3207.6,3.26524894]
[1736939241862,0.235002,3207.7,3207.6,3.43924894]
[1736939242527,0.235002,3207.7,3207.6,0.174]
[1736939243723,0.235002,3207.7,3207.6,3.4463489]
[1736939245433,1.036102,3207.7,3207.6,3.4463489]
[1736939246325,0.235002,3207.4,3207.3,3.2723489]
[1736939246528,0.235002,3207.4,3207.3,4.07993053]
[1736939246830,0.235002,3207.4,3207.3,0.80758163]
[1736939251500,0.235002,3207.4,3207.3,0.174]
[1736939252915,1.036102,3207.4,3207.3,0.174]
[1736939253236,1.06733109,3207.4,3207.2,0.166103]
[1736939253415,1.586102,3207.4,3207.3,0.174]
[1736939253616,1.91604719,3207.4,3207.3,0.174]
[1736939253819,1.31,3207.3,3207.2,0.166103]
[1736939254013,0.785002,3207.0,3206.9,0.32554326]
[1736939254213,7.37834915,3207.0,3206.9,0.32554326]
[1736939254411,7.37834915,3207.0,3206.5,3.2723489]
[1736939254412,0.785002,3206.6,3206.5,3.2223489]
[1736939254637,5.94606103,3206.6,3206.5,3.2223489]
[1736939254848,0.995002,3205.8,3205.7,3.2223489]
[1736939255409,0.995002,3205.8,3205.2,0.63743874]
[1736939255610,0.235002,3205.4,3205.3,0.174]
[1736939255839,0.235002,3205.4,3205.2,0.63743874]
[1736939256155,0.235002,3205.4,3205.2,0.81143874]
[1736939256647,0.235002,3205.4,3204.9,0.174]
[1736939257764,0.235002,3205.4,3205.0,0.03119586]
[1736939257958,0.235002,3205.4,3205.1,0.62910533]
[1736939258719,0.76,3205.1,3204.9,0.03119587]
[1736939259063,0.76,3205.1,3205.0,0.174]
[1736939259274,0.235002,3205.0,3204.9,0.174]
[1736939259421,0.235002,3205.0,3204.3,0.1661]
[1736939259422,0.235002,3205.0,3204.4,0.03120073]
[1736939259621,0.235002,3205.0,3204.5,0.174]
[1736939260168,0.235002,3205.0,3204.6,0.03120073]
[1736939260319,0.235002,3204.8,3204.3,0.1661]
[1736939260519,0.235002,3204.8,3204.4,0.174]
[1736939260721,0.235002,3204.8,3204.5,0.03120027]
[1736939261674,0.235002,3205.0,3204.8,0.1661]
[1736939261957,0.235002,3205.5,3204.9,2.99713499]
[1736939262618,0.235002,3205.7,3205.2,2.96593893]
[1736939262818,0.235002,3205.9,3205.5,2.96593893]
[1736939263165,0.235002,3205.9,3205.6,0.0311873]
[1736939264734,0.235002,3205.9,3205.6,0.63678581]
[1736939265523,0.235002,3205.9,3205.7,0.0311878]
[1736939268398,0.235002,3205.7,3205.6,0.63678581]
[1736939268522,0.235002,3205.7,3205.6,0.81078581]
[1736939268922,0.235002,3205.7,3205.6,0.174]
[1736939269323,0.235002,3205.7,3205.4,0.1661]
[1736939269523,0.235002,3205.7,3205.6,0.174]
[1736939273254,0.235002,3205.4,3205.2,2.9971301]
[1736939273572,0.235002,3205.4,3205.3,0.79634635]
[1736939275773,0.235002,3205.4,3205.3,0.8275405]
[1736939277259,0.235002,3205.4,3205.3,0.79634635]
[1736939283385,0.235002,3205.4,3205.3,0.174]
[1736939283558,0.235002,3204.7,3204.3,0.1661]
[1736939283760,0.235002,3204.7,3204.6,0.6179324]
[1736939284071,0.235002,3204.4,3204.3,0.174]
[1736939284479,0.235002,3204.4,3204.3,0.81280512]
[1736939284671,0.235002,3204.4,3204.3,0.174]
[1736939284992,0.235002,3204.1,3204.0,0.166103]
[1736939285210,1.054102,3204.1,3204.0,0.340103]
[1736939285395,4.054102,3204.1,3204.0,0.166103]
[1736939285703,0.235002,3203.2,3203.1,3.2509122]
[1736939285998,0.235002,3203.6,3203.1,3.33435585]
[1736939286360,0.235002,3203.6,3203.1,3.58310344]
[1736939286566,0.25,3205.2,3203.1,3.58310344]
[1736939286567,0.235002,3203.8,3203.5,3.55]
[1736939286767,0.235002,3204.0,3203.7,3.51593893]
[1736939286979,0.235002,3204.2,3203.9,0.55]
[1736939287193,0.235002,3204.2,3203.8,0.20520805]
[1736939287194,0.235002,3204.2,3204.0,2.99714422]
[1736939287367,0.235002,3203.9,3203.8,0.174]
[1736939287898,0.235002,3203.9,3203.7,2.99714803]
[1736939288102,0.235002,3204.0,3203.8,0.724]
[1736939288984,0.235002,3204.0,3203.9,0.55]
[1736939289189,0.235002,3204.2,3203.9,0.55]
[1736939289400,0.235002,3204.2,3204.1,2.96593893]
[1736939289802,0.235002,3204.2,3204.1,3.13993893]
[1736939290002,0.235002,3204.3,3204.1,3.13993893]
[1736939290207,0.8191,3205.1,3204.2,0.55]
[1736939290208,0.235002,3204.5,3204.2,0.55]
[1736939290706,0.235002,3204.5,3204.1,3.13993893]
[1736939290707,0.235002,3204.2,3204.1,0.174]
[1736939291004,0.235002,3204.2,3204.1,3.68993893]
[1736939292683,0.235002,3204.2,3204.1,3.13993893]
[1736939296606,0.235002,3204.5,3204.4,0.55]
[1736939296808,0.235002,3204.5,3204.4,3.54713998]
[1736939298208,0.235002,3204.5,3204.4,3.51593893]
[1736939299704,0.235002,3204.5,3204.4,2.96593893]
[1736939299905,0.235002,3204.5,3204.4,3.13993893]
[1736939300989,0.235002,3204.5,3204.4,3.68993893]
[1736939303211,0.235002,3204.5,3204.4,3.13993893]
[1736939303390,0.235002,3204.5,3204.4,3.77954578]
[1736939305511,0.235002,3204.5,3204.4,0.63960685]
[1736939305512,1.054102,3204.5,3204.4,0.63960685]
[1736939305809,1.054102,3204.5,3204.4,0.81360685]
[1736939308685,0.8191,3204.5,3204.4,0.81360685]
[1736939308986,1.054102,3204.5,3204.4,0.81360685]
[1736939309532,0.235002,3204.5,3204.4,0.81360685]
[1736939312111,0.235002,3204.5,3204.4,0.174]
[1736939315222,0.235002,3204.5,3204.3,2.96593893]
[1736939315424,0.235002,3204.5,3204.4,0.177]
[1736939317567,0.235002,3204.2,3204.1,0.63633464]